Cogmind - Beta 15 @@@ ROGUE MODE // 2025.08.31 @ 20:36:21 Player: MadBadger Result: Destroyed by 2I-ONL(R) with Subdweller Shrapnel Launcher Performance ------------- Evolutions (0) 0 Regions Visited (2) 400 Robots Destroyed (13) 65 Value Destroyed (345) 345 Prototype IDs (11) 220 Alien Tech Used (0) 0 Bonus (-11) -11 TOTAL SCORE: 1019 Bonus ------- Friendly Fire -11 Cogmind --------- Core Integrity 0/250 Matter 174/300 Energy 100/100 System Corruption 0% Temperature Cool (0) Movement Core (200) Ox3 Location -10/Subcaves Parts ------- > --- POWER (1) -------- (None) > --- PROPULSION (2) --- (None) > --- UTILITY (2) ------ Small Storage Unit Makeshift Light Armor Plating > --- WEAPON (2) ------- Assault Rifle > --- INVENTORY (8) ---- ECM Suite EM Pulse Gun Light Assault Rifle Light Assault Rifle Peak State ------------ > --- POWER ------------ Ion Engine > --- PROPULSION ------- Wheel Compact Wheel > --- UTILITY ---------- Small Storage Unit ECM Suite > --- WEAPON ----------- Heavy Riot Gun Beam Cannon > --- INVENTORY -------- Light Ion Engine Light Treads Light Treads EM Pulse Gun Assault Rifle Light Assault Rifle Light Assault Rifle Grenade Launcher [Rating: 10] Favorites ----------- Power Ion Engine Engine Ion Engine Propulsion Wheel Treads Light Treads Wheel Wheel Utility Small Storage Unit Device ECM Suite Storage Small Storage Unit Protection Makeshift Light Armor Plating Weapon Beam Cannon Energy Gun Heavy Riot Gun Energy Cannon Beam Cannon Ballistic Gun Assault Rifle Launcher Grenade Launcher Build | -11 -10 -10 ------- Run | Yrd Mat Sub Slots Evolved . | . . . Power . | . . . Propulsion . | . . . Utility . | . . . Weapon . | . . . Parts Attached 17 | 6 4 7 Power 2 | 1 . 1 Engine 2 | 1 . 1 Core . | . . . Reactor . | . . . Propulsion 4 | 2 . 2 Treads 2 | . . 2 Leg . | . . . Wheel 2 | 2 . . Hover . | . . . Flight . | . . . Utility 3 | 1 1 1 Device 1 | . 1 . Storage 1 | 1 . . Processor . | . . . Hackware . | . . . Protection 1 | . . 1 Artifact . | . . . Weapon 8 | 2 3 3 Energy Gun 2 | . . 2 Energy Cannon 1 | . 1 . Ballistic Gun 4 | 2 2 . Ballistic Cannon . | . . . Launcher 1 | . . 1 Special Weapon . | . . . Impact Weapon . | . . . Slashing Weapon . | . . . Piercing Weapon . | . . . Special Melee Weapon . | . . . Unidentified Prototypes . | . . . Parts Lost 10 | . . 10 Power 2 | . . 2 Propulsion 4 | . . 4 Utility . | . . . Weapon 4 | . . 4 Highest Loss Streak 5 | . . 5 To Critical Strikes . | . . . Average Backups 6 | 2 6 7 Power . | . 1 . Propulsion 1 | 1 2 1 Utility . | . . . Weapon 4 | . 3 5 Tool/Special . | . . . Unused Backups 2 | . . 2 Power . | . . . Propulsion . | . . . Utility . | . . . Weapon 2 | . . 2 Tool/Special . | . . . Average Slot Usage (%) 93 | . 99 90 Engine 12 | . 14 11 Treads 9 | . . 12 Wheel 16 | . 28 12 Device 12 | . 13 12 Storage 14 | . 14 14 Protection 1 | . . 1 Energy Gun 4 | . . 6 Energy Cannon 10 | . 5 13 Ballistic Gun 8 | . 22 3 Launcher 1 | . . 1 Peak Build Rating 10 | 6 7 10 Average Rating 7 | 4 6 8 On Entrance 4 | . 6 7 Naked Turns . | . . . Heaviest Build 19 | 13 17 19 Greatest Support 40 | 26 26 40 Greatest Overweight (x) 2 | 2 . 1 Average Overweight (x) . | . . . Largest Inventory Capacity 8 | 8 8 8 Average Capacity 7 | 7 8 8 Most Carried 8 | 4 8 8 Average Carried 6 | 2 6 7 Final Capacity 8 | 8 8 8 Final Carried 8 | 4 8 4 Class Distribution -------------------- 100% | Mutant Dominant Class ---------------- Mutant | -10/Materials Mutant | -10/Subcaves Resources | -11 -10 -10 ----------- Run | Yrd Mat Sub Matter Collected 489 | 220 51 218 Remotely . | . . . Salvage Created 348 | . 93 255 Parts 23 | . 8 15 Haulers Intercepted . | . . . Recyclers Shooed . | . . . Parts Field Recycled . | . . . Retrieved Matter . | . . . Parts Self-Destructed 5 | . . 5 Prevented 1 | . . 1 Kills | -11 -10 -10 ------- Run | Yrd Mat Sub Combat Hostiles Destroyed 13 | . 6 7 Guns 9 | . 6 3 Cannons 3 | . . 3 Classes Destroyed 3 | . 1 2 Swarmer 6 | . 6 . Sentry 1 | . . 1 Subdweller 6 | . . 6 Best Kill Streak 6 | . 6 1 Combat Bots Only 6 | . 6 1 Max Kills in Single Turn 2 | . 2 1 Gunslinging 1 | . 1 . Exploded . | . . . Melee . | . . . Uniques/NPCs Destroyed . | . . . Combat | -11 -10 -10 -------- Run | Yrd Mat Sub Hostile Shots Fired 118 | . 51 67 Missed 40 | . 18 22 Hits 78 | . 33 45 Projectile 78 | . 33 45 AOE 6 | . . 6 Critical Strikes 4 | . . 4 Damage Taken 1417 | . 265 1152 Core 250 | . 43 207 Absorbed by Shields . | . . . Core Remaining (%) 100 | 100 . . Volleys Fired 69 | . 23 46 Largest 2 | . 2 2 Hottest 120 | . 80 120 Shots Fired 125 | . 46 79 Gun 72 | . 43 29 Cannon 38 | . 3 35 Launcher 15 | . . 15 Special . | . . . Kinetic 50 | . 43 7 Thermal 43 | . 3 40 Explosive 15 | . . 15 Electromagnetic 17 | . . 17 Robot Hit Streak 10 | . 8 10 Robot Miss Streak 4 | . 4 4 Penetration Max . | . . . Secondary Targets 3 | . 3 . Max Gunslinging Chain 1 | . 1 . Shots Hit Robots 78 | . 24 54 Core Hits 22 | . 8 14 Critical Kills . | . . . Critical Parts Destroyed . | . . . Critical Strikes . | . . . Melee Attacks . | . . . Impact . | . . . Slashing . | . . . Piercing . | . . . Sneak Attacks . | . . . Combat Hostiles . | . . . Follow-up Attacks . | . . . Damage Inflicted 1554 | . 254 1300 Guns 634 | . 254 380 Cannons 408 | . . 408 Explosions 512 | . . 512 Melee . | . . . Ramming . | . . . Kinetic 333 | . 254 79 Thermal 514 | . . 514 Explosive 464 | . . 464 Electromagnetic 243 | . . 243 Impact . | . . . Slashing . | . . . Piercing . | . . . Highest Corruption . | . . . Average Corruption . | . . . Corruption Purged . | . . . Corruption Blocked . | . . . Overload Shots . | . . . Overflow Damage 19 | . . 19 Projectiles . | . . . Explosions 19 | . . 19 Melee . | . . . Knockbacks . | . . . Impact . | . . . Kinetic . | . . . Secondary . | . . . Self-Inflicted Damage 104 | . . 104 Shots 5 | . . 5 Rammed . | . . . Targets Rammed . | . . . Kicked . | . . . Crushed . | . . . Highest Temperature 36 | . 36 36 Average Temperature 16 | . 17 16 Received Heat Transfer 246 | . . 246 Siege Activations . | . . . Martial Activations . | . . . Shielding Activations . | . . . Robots Disrupted . | . . . Combat Hostiles . | . . . Robots Corrupted 1 | . . 1 Combat Hostiles 1 | . . 1 Parts Fried 1 | . . 1 Impact Corruptions . | . . . Robots Melted . | . . . Combat Hostiles . | . . . Parts Melted . | . . . Heat Transferred 1049 | . . 1049 Parts Sabotaged . | . . . Parts Stolen . | . . . Parts Stripped . | . . . Power Chain Reactions 1 | . . 1 Alert | -11 -10 -10 ------- Run | Yrd Mat Sub Maximum Alert Level . | . . . Low Security (%) 100 | 100 100 . Level 1 . | . . . Level 2 . | . . . Level 3 . | . . . Level 4 . | . . . Level 5 . | . . . High Security . | . . . Max Security . | . . . Peak Influence 130 | . 130 . Initial . | . . . Average 35 | . 40 . Influence Increases 160 | . 140 20 Destroy 0b10 Robot/C 140 | . 120 20 Destroy Leader 20 | . 20 . Influence Decreases 160 | . 140 20 Time Decay 160 | . 140 20 Squads Dispatched . | . . . Investigation . | . . . Extermination . | . . . Reinforcement . | . . . Assault . | . . . Garrison . | . . . Intercept . | . . . Searches Triggered . | . . . Construction Impeded . | . . . Haulers Reinforced . | . . . Active Scanning Responses . | . . . Cargo Convoy Interrupts . | . . . Stealth | -11 -10 -10 --------- Run | Yrd Mat Sub Distress Signals 1 | . 1 . Communications Jammed . | . . . Distress Signals . | . . . Times Spotted 22 | . 13 9 Peak Tracking Total 6 | . 6 3 Tactical Retreats 1 | . . 1 Traps | -11 -10 -10 ------- Run | Yrd Mat Sub Traps Triggered . | . . . Indirectly . | . . . Trap Hack Attempts . | . . . Triggered . | . . . Disarmed . | . . . Reprogrammed . | . . . Reused . | . . . Traps Extracted . | . . . Installed . | . . . Triggered . | . . . Machines | -11 -10 -10 ---------- Run | Yrd Mat Sub Machines Disabled . | . . . Max in Single Turn . | . . . Machines Repaired . | . . . Machines Dismantled . | . . . Machines Sabotaged . | . . . Overloaded Fab Kills . | . . . Hacking | -11 -10 -10 --------- Run | Yrd Mat Sub Machines Accessed 1 | . . 1 Terminals . | . . . Fabricators . | . . . Repair Stations . | . . . Recycling Units . | . . . Scanalyzers . | . . . Garrison Access . | . . . Total Hacks 1 | . . 1 Successful 1 | . . 1 Failed . | . . . Catastrophic . | . . . Database Lockouts . | . . . Manual . | . . . Terminals . | . . . Fabricators . | . . . Repair Stations . | . . . Recycling Units . | . . . Scanalyzers . | . . . Garrison Access . | . . . Terminal Hacks 1 | . . 1 Proto ID Catalog 1 | . . 1 Fabricator Hacks . | . . . Repair Station Hacks . | . . . Recycling Unit Hacks . | . . . Scanalyzer . | . . . Garrison Access Hacks . | . . . Unauthorized Hacks . | . . . Terminals . | . . . Fabricators . | . . . Repair Stations . | . . . Recycling Units . | . . . Scanalyzers . | . . . Garrison Access . | . . . Data Cores Recovered . | . . . Used . | . . . Hacking Detections . | . . . Full Trace Events . | . . . Feedback Events . | . . . Feedback Blocked . | . . . Robot Schematics Acquired . | . . . Robots Built . | . . . Authchips . | . . . Time . | . . . Total Robot Build Rating . | . . . Part Schematics Acquired . | . . . Parts Built . | . . . Authchips . | . . . Time . | . . . Total Part Build Rating . | . . . Parts Repaired . | . . . Time . | . . . Parts Recycled . | . . . Recycled Matter . | . . . Retrieved Matter . | . . . Retrieved Components . | . . . Parts Scanalyzed . | . . . Part Schematics Acquired . | . . . Parts Damaged . | . . . Bothacking | -11 -10 -10 ------------ Run | Yrd Mat Sub Used RIF Installer . | . . . Robots Hacked . | . . . Non-combat . | . . . Combat . | . . . Robot Hacks Applied . | . . . Relay Couplers Released . | . . . Fabnet Peak Effective % . | . . . Robots Rewired . | . . . Allies Hacked . | . . . Hacks Repelled . | . . . Allies | -11 -10 -10 -------- Run | Yrd Mat Sub Total Allies . | . . . Largest Group . | . . . Highest-Rated Group . | . . . Highest-Rated Ally . | . . . Total Orders . | . . . Ally Attacks . | . . . Total Damage . | . . . Kills . | . . . Allies Corrupted . | . . . Allies Melted . | . . . Intel | -11 -10 -10 ------- Run | Yrd Mat Sub Active Infowar (turns) 922 | . 411 511 ECM 922 | . 411 511 Robot Analysis Total . | . . . Derelict Logs Recovered 1 | . . 1 Drone Launches . | . . . Drone Recoveries . | . . . Exploration | -11 -10 -10 ------------- Run | Yrd Mat Sub Turns Passed 1601 | 57 432 1112 Spaces Moved 1088 | 47 304 737 Core 10 | 10 . . Treads 279 | . . 279 Legs . | . . . Wheels 799 | 37 304 458 Hover . | . . . Flight . | . . . Fastest Speed 50 | 50 90 90 Average Speed 108 | 94 90 116 Slowest Speed 160 | 150 90 160 Overloaded Moves . | . . . Propulsion Burnouts . | . . . Robots Hopped . | . . . Potential Cave-ins . | . . . Cave-ins Triggered . | . . . Exploration Rate (%) 28 | 4 43 39 Regions Visited 2 Branch Regions 1 Pre-discovered Areas . | . . . Known Exits Taken . | . . . Unknown Exits Taken 2 | 1 1 . Scrap Searched 1 | . . 1 Spaces Dug . | . . . Terrain Destroyed 55 | . . 55 Melee . | . . . Projectile . | . . . AOE 55 | . . 55 Terrain Rammed . | . . . Walls Destroyed . | . . . Machines Disabled . | . . . Actions | -11 -10 -10 --------- Run | Yrd Mat Sub Total 1385 | 56 419 910 Wait 196 | . 84 112 Move 1086 | 46 303 737 Hop . | . . . Pick Up 9 | 4 3 2 Fast Attach 9 | 6 2 1 Attach 7 | . . 7 Detach 2 | . . 2 Swap 4 | . 2 2 Drop 3 | . 2 1 Fire 69 | . 23 46 Melee . | . . . Ram . | . . . Kick . | . . . Crush . | . . . Escape Stasis . | . . . Rewire . | . . . Trap . | . . . Miscellaneous . | . . . Route ------- -11/Scrapyard -10/Materials (discovered 2 exits: [*Mat] / *Sub) -10/Subcaves (discovered 1 exit: [*Mat]) History --------- Turn | Location | Event 26 | -11/Scrapyard | Discovered new exit (range 15) 58 | -11/Scrapyard | Entered Materials 220 | -10/Materials | Discovered new exit (range 13) 301 | -10/Materials | Build established: Mutant 464 | -10/Materials | Discovered new exit (range 8) 490 | -10/Materials | Entered Subcaves 734 | -10/Subcaves | Visited 4L-MR0's lab 803 | -10/Subcaves | Shifting Twisted Machinery released Lgt. Humpback 819 | -10/Subcaves | Shifting Twisted Machinery released Spk. Treads 1099 | -10/Subcaves | A swath of the cavern ceiling suddenly collapsed 1227 | -10/Subcaves | Core integrity fell below 50% 1518 | -10/Subcaves | Discovered new exit (range 14) 1537 | -10/Subcaves | Core integrity fell below 20% 1593 | -10/Subcaves | Lost 5 parts (1p2n2w) 1602 | -10/Subcaves | Destroyed by 2I-ONL(R) with Subdweller Shrapnel Launcher Last Messages --------------- 01532_ Beam Cannon destroyed. 01533_ The unstable cave ceiling collapses. 01533_ Lgt. Ion Engine destroyed. 01534_ GD-K8N(R): "FREEEEDUMB!" 01537_ S9-B4K(O) collects matter. 01538_ The unstable cave ceiling collapses. 01543_ Destroyed Sub. Optics. 01547_ Grenade Launcher destroyed. 01547_ Destroyed Grenade Launcher. 01552_ The unstable cave ceiling collapses. 01556_ GD-K8N(R) destroyed. 01558_ S9-B4K(O) collects matter. 01562_ Lgt. Treads destroyed. 01583_ The unstable cave ceiling collapses. 01586_ UM-30B(R) destroyed. 01588_ W2-4HR(O) collects matter. 01595_ Beam Rifle destroyed. 01597_ The unstable cave ceiling collapses. 01599_ W2-4HR(O) puts together Sub. Shrapnel Launcher. 01602_ Wheel destroyed. Map ----- +----------------------------------------------------+ | ?????????????????????????????????????????????????? | | ?????????????????????????????????????????????????? | | ?????????????????????????????????????????????????? | | ?????????????????????????????????????????????????? | | ????????????##??##???????????????????????????????? | | ????????????# ?"""??????? # ????????????????????? | | ????????????# " ?????"" ???????????????????? | | ????????????# "" ??? < ???????????????????? | | ????????????#%" #?? # # ???????????????????? | | ????????????#"" #?? ????????????????????? | | ???????????##"""???? # ????????????????????? | | ??????????##"""####?? # # ????????????????????? | | ?????????##" " ## ##?## # #????????????????????? | | ?????????# #### ????????????????????? | | ?????????# ## R ????????????????????? | | ?????????## # ## ###??????????????????? | | ?????##??## ## ## #??????????????????? | | ?????# ## # ### ##?????????????????? | | ????## " ;" #?????????????????? | | ???## " #?????????????????? | | ???# ### ###???????????????? | | ???# " #### O # ;##??????????????? | | ???## "### #?# # ##?????????????? | | ????### #??## #### #?????????????? | | ??????## ???#" "#### * #?????????????? | | ???????##???# " # "#""# @ #?????????????? | | ????????######"" ] " #?????????????? | | ??????? " """""" # ### #?????????????? | | ??????"""""""""" #####?#;;; ; #?????????????? | | ????????# "" "" "##### ; ##?????????????? | | ????????## " %" #?## ####??????????????? | | ???? ## " ###??# # #?????????????????? | | ??? ???##"" " "" #????## # #?????????????????? | | ?? ??????#"" #"" " #?????# # #?????????????????? | | ??????????##" " =% #??##?# # #?????????????????? | | ??????????#""" ! #??$??# # #?????????????????? | | ??????????## "" " ## #??# # #??????????????#### | | ??????????# "" " #"# # #??# # #??????????????# | | ?###??????##" ## #### ##?? # ##?????????????# | | ## #??????# # #??## ####"## #????####????## | | # ??????# ##???## ## # #????## #?#### | | # ?????## #?????## ## #?????# #?# | | ?# ????## ## #????? # # ##?????# !#### # | | ?# ??### ### ????##### ##????##*%### # | | ##"" ### #??##??????# #?#### &[& # | | #""" #??????????# #### # ### | | """" #??????????## #?? | | #""## ####???????????# #?? | | ????# ##??????????????# ### # #?? | | ???## #???????????????###?#### ##?? | +----------------------------------------------------+ Best States ------------- Heat Dissipation 25 Energy Generation 10 Energy Capacity 250 Matter Stores 300 Matter Capacity 300 Sight Range 16 Terrain Scan Density 10 ECM Strength 1 Armor Coverage 100 Evasion (%) 42 Recoil Reduction 2 Item Schematics ----------------- None Robot Schematics ------------------ None Fabricated ------------ Nothing Repaired ---------- Nothing Alien Tech Used ----------------- None Achievements -------------- None Challenges ------------ None Game ------ Seed GammaInertialRipper Manual? 0 Play Time 00:17:40 Cumulative 26.9 hours Start 2025.08.31 @ 20:11:55 End 2025.08.31 @ 20:36:21 Sessions 1 Manual Loads 0 Difficulty Rogue Special Mode None Game No. 57 Rogue 57 Adventurer 0 Explorer 0 Win Type - Total 0 Types 0/0/0/0/0/0/0/0/0/0 Lore% 10 Gallery% 16 Achievement% 16 Wizard Run 0 Options --------- Layout 0 ASCII 0 Keyboard 1 Movement Numpad Keybinds 0 Fullscreen 2 Font 24/Smallcaps Map View 76x50 Zoom Use 0% Tactical HUD 1 Map Filters NONE Filters NONE Steam 1 RUN: ba3c90fc-4f3e-4287-a39a-1acc9c08ce32